fUSD/lending_fUSD_20251110
["ID","MTS","AMOUNT","RATE_DAILY","PERIOD"]
[393577133,1762810238798,-1000.0,0.000177,2]
[393577134,1762810238809,-1013.0,0.000177,2]
[393577135,1762810238819,-1000.0,0.000177,2]
[393577136,1762810238829,-168.0,0.00017722,2]
[393577137,1762810238839,-15784.44872785,0.00017766,2]
[393577138,1762810238850,-802.5312,0.0001782,2]
[393577139,1762810238861,-3734.0,0.00017825,2]
[393577140,1762810238870,-513.31168816,0.00017865,2]
[393577141,1762810238882,-533.35,0.00017868,2]
[393577142,1762810238892,-513.31168815,0.00017871,2]
[393577143,1762810238904,-513.31168815,0.00017877,2]
[393577144,1762810238915,-168.0,0.00017882,2]
[393577145,1762810238926,-513.31168815,0.00017883,2]
[393577146,1762810238937,-513.31168815,0.00017888,2]
[393577147,1762810238947,-513.31168815,0.00017894,2]
[393577148,1762810238958,-150.0,0.00017899,2]
[393577149,1762810238969,-152.34443913,0.00017899,2]
[393577150,1762810238979,-150.0,0.00017899,2]
[393577151,1762810238989,-150.0,0.00017899,2]
[393577152,1762810238999,-500.0,0.00017899,2]
[393577153,1762810239010,-150.0,0.00017899,2]
[393577154,1762810239020,-500.0,0.00017899,2]
[393577155,1762810239031,-150.0,0.00017899,2]
[393577156,1762810239043,-150.0,0.00017899,2]
[393577157,1762810239054,-150.0,0.00017899,2]
[393577158,1762810239065,-150.0,0.00017899,2]
[393577159,1762810239076,-150.0,0.00017899,2]
[393577160,1762810239087,-500.0,0.00017899,2]
[393577161,1762810239098,-480.46725026,0.000179,2]
[393577162,1762810239109,-158.52185975,0.000179,2]
[393577163,1762810239120,-217.06057017,0.000179,2]
[393577164,1762810239131,-595.55414542,0.000179,2]
[393577165,1762810239142,-513.31168815,0.000179,2]
[393577166,1762810239151,-300.0,0.00017908,2]
[393577167,1762810239163,-573.788,0.00017914,2]
[393577168,1762810239174,-480.46725026,0.00017919,2]
[393577169,1762810239185,-480.46725026,0.00017937,2]
[393577170,1762810239195,-151.0,0.00017957,2]
[393577171,1762810239205,-4925.0,0.0001796,2]
[393577172,1762810239215,-12034.86066704,0.0001796,2]
[393577173,1762810239225,-280.0,0.00017965,2]
[393577174,1762810239236,-500.0,0.00017973,2]
[393577175,1762810239248,-500.0,0.00017973,2]
[393577176,1762810239258,-500.0,0.00017973,2]
[393577177,1762810239268,-177.37183527,0.00017973,2]
[393577178,1762810239279,-500.0,0.00017973,2]
[393577179,1762810239290,-500.0,0.00017973,2]
[393577180,1762810239300,-500.0,0.00017973,2]
[393577181,1762810239310,-500.0,0.00017973,2]
[393577182,1762810239320,-500.0,0.00017973,2]
[393577183,1762810239331,-500.0,0.00017973,2]
[393577184,1762810239341,-500.0,0.00017973,2]
[393577185,1762810239351,-500.0,0.00017973,2]
[393577186,1762810239361,-500.0,0.00017973,2]
[393577187,1762810239372,-500.0,0.00017973,2]
[393577188,1762810239383,-500.0,0.00017973,2]
[393577189,1762810239394,-500.0,0.00017973,2]
[393577190,1762810239404,-151.0,0.00017997,2]
[393577191,1762810239414,-182.59445761,0.00017999,5]
[393577192,1762810239424,-1040.9103192,0.00017999,5]
[393577193,1762810239434,-516.69,0.00017999,2]
[393577194,1762810239444,-300.0,0.00017999,2]
[393577195,1762810239453,-1387677.80667571,0.00018,2]
[393577196,1762810239467,-252459.22055012,0.00018,2]
[393577197,1762810239483,-353.1,0.00018,2]
[393577198,1762810239495,-531.11009995,0.00018,2]
[393577199,1762810239507,-5837.10304078,0.00018,2]
[393577205,1762810239905,-2065.99999,0.00018,2]
[393577206,1762810239916,-1448.58484785,0.00018,2]
[393577207,1762810239928,-10283.65646986,0.00018,2]
[393577208,1762810239939,-2639.93182588,0.00018,2]
[393577209,1762810240079,-654.45,0.00018,2]
[393577211,1762810240633,-1.7e-07,0.00018,2]
[393577212,1762810240645,-751.66775334,0.00018,2]
[393577213,1762810240656,-1588.05,0.00018,2]
[393577217,1762810245021,-199.87995623,0.00017997,2]
[393577218,1762810245030,-327.62357813,0.00018,2]
[393577219,1762810245046,-511249.99999999,0.00018,2]
[393577220,1762810245057,-1215.909,0.00018,2]
[393577221,1762810245069,-342863.0230878,0.00018,2]
[393577222,1762810245881,-640.45025,0.00018,2]
[393577223,1762810245940,-967.1442304,0.00018,2]
[393577224,1762810245951,-1000.4995,0.00018,2]
[393577225,1762810246185,-3802.928,0.00018,2]
[393577226,1762810246246,-2370.62381346,0.00018,2]
[393577227,1762810246258,-639.97455429,0.00018,2]
[393577230,1762810293330,164.41830001,0.00014998,2]
[393577231,1762810307879,-168.04175019,0.00014998,2]
[393577238,1762810313543,-151.20378019,0.00014998,2]
[393577239,1762810318395,-16.33616961,0.00014998,2]
[393577240,1762810318421,-192.51023054,0.00014998,2]
[393577241,1762810320211,-163.17,0.00014998,2]
[393577242,1762810321472,-144.31976946,0.00014998,2]
[393577243,1762810321507,-500.0,0.00014998,2]
[393577244,1762810321541,-500.0,0.00014998,2]
[393577245,1762810321574,-381.08759635,0.00014998,2]
[393577246,1762810321609,-500.0,0.00014998,2]
[393577247,1762810321696,300.0,0.00014997,2]
[393577248,1762810328066,168.04175036,0.00014998,2]
[393577249,1762810338073,500.0,0.00014998,2]
[393577250,1762810338131,360.05018034,0.00014998,2]
[393577254,1762810767127,1149.69,8.584e-05,2]
[393577255,1762810767366,1149.69,9.018e-05,2]
[393577256,1762810767584,1149.69,9.452e-05,2]
[393577257,1762810767790,1149.69,9.887e-05,2]
[393577258,1762810767984,22.34333768,0.00010321,2]
[393577259,1762810768007,1127.34666232,0.00010321,2]
[393577260,1762810768199,1149.69,0.00010755,2]
[393577261,1762810768406,1149.69,0.00011189,2]
[393577262,1762810768668,1149.69,0.00011623,2]
[393577263,1762810769098,1149.69,0.00012057,2]
[393577264,1762810769336,1149.69,0.00012491,2]
[393577265,1762810769563,1149.69,0.00012925,2]
[393577266,1762810769767,1149.69,0.00013359,2]
[393577267,1762810770008,824.83333768,0.00013793,2]
[393577268,1762810770031,324.85666232,0.00013793,2]
[393577269,1762810770211,1149.69,0.00014227,2]
[393577270,1762810770449,1149.69,0.00014661,2]
[393577272,1762810820441,766.91,0.00013699,2]
[393577273,1762810923499,-1149.69,0.00015095,2]
[393577274,1762810923530,-1149.69,0.0001553,2]
[393577275,1762810923560,-1593.516497,0.00015784,2]
[393577276,1762810923592,-159.29689938,0.00015864,2]
[393577277,1762810923627,-745.93320724,0.00015964,2]
[393577278,1762810929460,-403.75679276,0.00015964,2]
[393577279,1762810929493,-1149.69,0.00016398,2]
[393577280,1762810929526,-516.69,0.00016438,2]
[393577281,1762810929562,-300.0,0.0001656,2]
[393577282,1762810935613,-1716.06,0.00016561,2]
[393577292,1762811308971,175.56,0.00013165,2]
[393577297,1762811367257,151.0,0.00030137,120]
[393577298,1762811372933,-567.63304159,0.000156,2]
[393577299,1762811374598,-432.3883,0.000156,2]
[393577320,1762811432076,-859.02065317,0.00015499,2]
[393577321,1762811432086,-300.0,0.00015599,2]
[393577322,1762811432096,-1200.0,0.00015599,2]
[393577323,1762811432105,-300.0,0.00015599,2]
[393577324,1762811432115,-1200.0,0.00016199,2]
[393577325,1762811432124,-585.0,0.00016246,2]
[393577326,1762811432137,-1259.46,0.00016457,2]
[393577327,1762811432147,-159.29689938,0.00016461,2]
[393577328,1762811432157,-6567.89,0.00016561,2]
[393577329,1762811432166,-200.0,0.00016567,2]
[393577330,1762811432176,-500.0,0.00016573,2]
[393577331,1762811432185,-504.01655372,0.00016573,2]
[393577332,1762811432195,-506.58967554,0.00016573,2]
[393577333,1762811432204,-500.0,0.00016573,2]
[393577334,1762811432214,-500.56295322,0.00016573,2]
[393577335,1762811432223,-500.0,0.00016598,2]
[393577336,1762811432232,-500.0,0.00016598,2]
[393577337,1762811432242,-408.63260673,0.00016598,2]
[393577338,1762811432252,-500.0,0.00016598,2]
[393577339,1762811432263,-500.0,0.00016598,2]
[393577340,1762811432273,-500.0,0.00016598,2]
[393577341,1762811432282,-500.0,0.00016598,2]
[393577342,1762811432291,-500.0,0.00016598,2]
[393577343,1762811432301,-500.0,0.00016598,2]
[393577344,1762811432310,-514.59786818,0.00016598,2]
[393577345,1762811432320,-500.0,0.00016598,2]
[393577347,1762811432329,-500.0,0.00016598,2]
[393577348,1762811432339,-500.0,0.00016598,2]
[393577349,1762811432348,-500.0,0.00016598,2]
[393577350,1762811432357,-457.0,0.00016599,2]
[393577351,1762811432367,-82659.31058538,0.000166,2]
[393577355,1762811432496,-1364.71260208,0.000166,2]
[393577357,1762811432507,-645.81778891,0.000166,2]
[393577359,1762811432559,-567.82272,0.000166,2]
[393577361,1762811437977,-1481.47999945,0.000166,2]
[393577362,1762811438035,-6856.19114981,0.000166,2]
[393577363,1762811438049,-259.13839387,0.000166,2]
[393577364,1762811438061,-3438.53801088,0.000166,2]
[393577365,1762811438071,-159.29689938,0.00016615,2]
[393577366,1762811438081,-1307.29,0.00016626,2]
[393577367,1762811438091,-151.73,0.00016715,2]
[393577368,1762811438101,-506.66,0.00016738,2]
[393577369,1762811438110,-1149.69,0.00016832,2]
[393577370,1762811438120,-200.0,0.00016925,2]
[393577371,1762811438130,-2000.0,0.00017,2]
[393577372,1762811438139,-250.0,0.00017,2]
[393577373,1762811438150,-1057.49158586,0.00017058,2]
[393577374,1762811438159,-420.0,0.00017062,2]
[393577375,1762811438169,-166.67,0.00017089,2]
[393577376,1762811438178,-500.0,0.00017121,2]
[393577377,1762811438188,-1680.0,0.00017148,2]
[393577378,1762811438198,-2.54762562,0.00017159,2]
[393577380,1762811438210,-247.45237438,0.00017159,2]
[393577381,1762811438221,-493.0,0.00017174,2]
[393577383,1762811438231,-350.2082253,0.00017229,2]
[393577426,1762811440036,-500.0,0.00016599,2]
[393577427,1762811440050,-168.28865202,0.00016599,2]
[393577428,1762811440061,-142.7917747,0.00017229,2]
[393577429,1762811440070,-493.0,0.00017269,2]
[393577430,1762811440081,-1106.26854867,0.0001729,2]
[393577431,1762811440093,-185.95730548,0.0001729,2]
[393577432,1762811440103,-1292.22585409,0.00017358,2]
[393577433,1762811440112,-151.0,0.0001739,2]
[393577434,1762811440121,-151.0,0.0001739,2]
[393577435,1762811440131,-151.0,0.0001739,2]
[393577436,1762811440140,-151.0,0.0001739,2]
[393577437,1762811440149,-151.0,0.0001739,2]
[393577438,1762811440158,-151.0,0.0001739,2]
[393577439,1762811440168,-151.0,0.0001739,2]
[393577440,1762811440177,-151.0,0.0001739,2]
[393577441,1762811440186,-151.0,0.0001739,2]
[393577442,1762811440196,-151.0,0.0001739,2]
[393577443,1762811440205,-151.0,0.0001739,2]
[393577444,1762811440215,-250.0,0.0001739,2]
[393577445,1762811440224,-151.0,0.0001739,2]
[393577446,1762811440233,-250.0,0.0001739,2]
[393577447,1762811440242,-151.0,0.0001739,2]
[393577448,1762811440252,-250.0,0.0001739,2]
[393577449,1762811440261,-151.0,0.0001739,2]
[393577450,1762811440271,-250.0,0.0001739,2]
[393577451,1762811440280,-151.0,0.0001739,2]
[393577452,1762811440289,-151.0,0.0001739,2]
[393577453,1762811440299,-176.66942981,0.0001739,2]
[393577454,1762811440308,-151.0,0.0001739,2]
[393577455,1762811440317,-151.0,0.0001739,2]
[393577456,1762811440327,-151.0,0.0001739,2]
[393577457,1762811440336,-151.0,0.0001739,2]
[393577458,1762811440346,-151.0,0.0001739,2]
[393577459,1762811440355,-151.0,0.0001739,2]
[393577461,1762811440365,-151.0,0.0001739,2]
[393577462,1762811440375,-151.0,0.0001739,2]
[393577463,1762811440385,-151.0,0.0001739,2]
[393577464,1762811440395,-151.0,0.0001739,2]
[393577465,1762811440406,-151.0,0.0001739,2]
[393577466,1762811440415,-151.0,0.0001739,2]
[393577467,1762811440424,-151.0,0.0001739,2]
[393577468,1762811440434,-151.0,0.0001739,2]
[393577469,1762811440443,-151.0,0.0001739,2]
[393577470,1762811440453,-151.0,0.0001739,2]
[393577471,1762811440462,-151.0,0.0001739,2]
[393577472,1762811440472,-151.0,0.0001739,2]
[393577474,1762811440482,-151.0,0.0001739,2]
[393577475,1762811440491,-151.0,0.0001739,2]
[393577476,1762811440500,-151.0,0.0001739,2]
[393577477,1762811440510,-151.0,0.0001739,2]
[393577478,1762811440521,-151.0,0.0001739,2]
[393577479,1762811440530,-151.0,0.0001739,2]
[393577480,1762811440540,-151.0,0.0001739,2]
[393577481,1762811440550,-151.0,0.0001739,2]
[393577482,1762811440559,-250.0,0.0001739,2]
[393577483,1762811440569,-289.45729011,0.0001739,2]
[393577484,1762811440578,-1292.22585409,0.00017426,2]
[393577485,1762811440587,-150.0,0.00017435,2]
[393577486,1762811440598,-293.34,0.00017436,2]
[393577487,1762811440608,-240.58,0.00017436,2]
[393577488,1762811440617,-1263.0,0.00017473,2]
[393577489,1762811440628,-250.0,0.0001749,2]
[393577490,1762811440648,-500.0,0.00017492,2]
[393577491,1762811440658,-545.34372932,0.00017492,2]
[393577492,1762811440668,-1292.22585409,0.00017493,2]
[393577493,1762811440677,-493.0,0.00017493,2]
[393577494,1762811440687,-500.0,0.00017507,2]
[393577495,1762811440696,-1292.22585409,0.00017561,2]
[393577496,1762811440706,-1292.22585409,0.00017629,2]
[393577497,1762811440715,-207.13782539,0.00017685,2]
[393577498,1762811440726,-1292.22585409,0.00017697,2]
[393577499,1762811440735,-1680.0,0.00017707,2]
[393577500,1762811440745,-500.0,0.00017753,2]
[393577501,1762811440755,-1292.22585409,0.00017764,2]
[393577502,1762811440764,-2500.0,0.00017789,2]
[393577503,1762811440774,-1417.91074449,0.00017799,2]
[393577504,1762811440783,-219.14854213,0.00017799,2]
[393577505,1762811440792,-219.1802319,0.00017799,2]
[393577506,1762811440802,-1417.91074443,0.0001781,2]
[393577507,1762811440811,-1417.91074443,0.00017821,2]
[393577508,1762811440821,-1292.22585409,0.00017832,2]
[393577509,1762811440831,-1417.91074443,0.00017833,2]
[393577510,1762811440840,-1417.91074443,0.00017844,2]
[393577511,1762811440849,-1417.91074443,0.00017855,2]
[393577512,1762811440859,-1417.91074443,0.00017866,2]
[393577513,1762811440868,-500.0,0.00017873,2]
[393577514,1762811440878,-500.0,0.00017873,2]
[393577515,1762811440887,-500.0,0.00017873,2]
[393577516,1762811440896,-500.0,0.00017873,2]
[393577517,1762811440906,-500.0,0.00017873,2]
[393577518,1762811440915,-500.0,0.00017873,2]
[393577519,1762811440926,-1417.91074443,0.00017878,2]
[393577520,1762811440935,-444.34,0.00017888,2]
[393577521,1762811440944,-1417.91074443,0.00017889,2]
[393577522,1762811440953,-420000.0,0.00017889,2]
[393577523,1762811440963,-3921.287,0.00017899,2]
[393577524,1762811440972,-150.0,0.00017899,2]
[393577525,1762811440982,-150.0,0.00017899,2]
[393577526,1762811440991,-500.0,0.00017899,2]
[393577527,1762811441005,-500.0,0.00017899,2]
[393577528,1762811441015,-269.92776545,0.00017899,2]
[393577529,1762811441024,-150.0,0.00017899,2]
[393577530,1762811441034,-150.0,0.00017899,2]
[393577531,1762811441046,-15272.60257354,0.000179,2]
[393577532,1762811441056,-2500.0,0.000179,2]
[393577533,1762811441066,-397.03609694,0.000179,2]
[393577534,1762811441077,-1417.91074443,0.000179,2]
[393577535,1762811441086,-1292.22585409,0.000179,2]
[393577536,1762811441095,-3108.84163111,0.00017935,2]
[393577537,1762811441105,-500.0,0.00017973,2]
[393577538,1762811441115,-1040.9103192,0.00017999,5]
[393577539,1762811441124,-182.59445761,0.00017999,5]
[393577540,1762811441134,-1000.684,0.00017999,2]
[393577541,1762811441143,-300.0,0.00017999,2]
[393577542,1762811441152,-300.0,0.00017999,2]
[393577543,1762811441162,-4151.0,0.00018,2]
[393577544,1762811441171,-209009.99653086,0.00018,2]
[393577545,1762811441180,-5350987.82049221,0.00018,2]
[393577546,1762811441246,-477.80224249,0.00018,2]
[393577547,1762811441279,-3540000.00004,0.00018,2]
[393577588,1762811446184,-9074.7702465,0.00018,2]
[393577590,1762811446195,-3895.74888,0.00018,2]
[393577591,1762811446206,-442.34850755,0.00018,2]
[393577592,1762811446218,-3774.8410002,0.00018,2]
[393577593,1762811446231,-511.05,0.00018,2]
[393577594,1762811446242,-5317.23218,0.00018,2]
[393577595,1762811446253,-1509.16965402,0.00018,2]
[393577596,1762811446264,-1723.0954988,0.00018,2]
[393577597,1762811446275,-2699.92212673,0.00018,2]
[393577598,1762811446470,-266.29648987,0.00018,2]
[393577599,1762811446531,-12935.97155572,0.00018,2]
[393577601,1762812134370,150.0,0.00016701,120]
[393577609,1762812632156,-421.98745115,0.00015764,2]
[393577610,1762812632166,-192.3864546,0.00015838,2]
[393577611,1762812632178,-57.6135454,0.00015838,2]
[393577612,1762812632187,-250.0,0.00015864,2]
[393577613,1762812632196,-999.0,0.00015912,3]
[393577614,1762812632205,-104.63455853,0.00015979,2]
[393577615,1762812632216,-90.36544147,0.00015979,2]
[393577616,1762812632225,-166.66,0.00016126,2]
[393577617,1762812632234,-212.09424376,0.00016338,2]
[393577618,1762812632243,-1189.65140517,0.00016438,2]
[393577619,1762812632270,-559.2491887,0.00016438,2]
[393577620,1762812632281,-544.02,0.00016438,2]
[393577621,1762812632292,-219.03940613,0.00016438,2]
[393577622,1762812632301,-166.66,0.00016466,2]
[393577623,1762812632310,-1200.0,0.0001647,2]
[393577624,1762812632319,-439.0,0.00016472,2]
[393577625,1762812632328,-300.0,0.00016472,2]
[393577626,1762812632337,-500.0,0.00016473,2]
[393577627,1762812632347,-500.0,0.00016473,2]
[393577628,1762812632356,-500.0,0.00016473,2]
[393577629,1762812632366,-500.0,0.00016473,2]
[393577630,1762812632375,-500.0,0.00016473,2]
[393577631,1762812632385,-500.0,0.00016473,2]
[393577632,1762812632396,-219.18023189,0.00016478,2]
[393577633,1762812632405,-574.75022188,0.00016478,2]
[393577634,1762812632415,-514.72,0.0001649,2]
[393577635,1762812632424,-151.0,0.0001649,2]
[393577636,1762812632433,-151.0,0.0001649,2]
[393577637,1762812632443,-262.91609284,0.0001649,2]
[393577638,1762812632452,-151.0,0.0001649,2]
[393577639,1762812632461,-151.0,0.0001649,2]
[393577640,1762812632471,-151.0,0.0001649,2]
[393577641,1762812632481,-151.0,0.0001649,2]
[393577642,1762812632490,-151.0,0.0001649,2]
[393577643,1762812632499,-151.0,0.0001649,2]
[393577644,1762812632508,-151.0,0.0001649,2]
[393577645,1762812632518,-151.0,0.0001649,2]
[393577646,1762812632527,-151.0,0.0001649,2]
[393577647,1762812632536,-151.0,0.0001649,2]
[393577648,1762812632546,-151.0,0.0001649,2]
[393577649,1762812632555,-550.0,0.00016498,2]
[393577650,1762812632564,-269.55988574,0.00016499,2]
[393577651,1762812632574,-335.08753168,0.00016499,2]
[393577652,1762812632583,-500.0,0.00016499,2]
[393577654,1762812632592,-305.87535208,0.00016499,2]
[393577656,1762812632601,-180.2241358,0.00016499,2]
[393577658,1762812632611,-111564.04464945,0.000165,2]
[393577659,1762812632622,-367.62244503,0.000165,2]
[393577660,1762812632633,-357.41173712,0.000165,2]
[393577661,1762812632647,-1053.03409589,0.000165,2]
[393577662,1762812632657,-1741.4297148,0.000165,2]
[393577663,1762812632668,-710.60282084,0.000165,2]
[393577664,1762812632679,-290.34699817,0.000165,2]
[393577806,1762812638197,-766.68715685,0.000165,2]
[393577807,1762812638210,-303148.82038185,0.000165,2]
[393577808,1762812638220,-2609.33729646,0.00016578,2]
[393577809,1762812638231,-150.0,0.00016678,2]
[393577810,1762812638240,-150.0,0.00016701,2]
[393577811,1762812638250,-1091.69222221,0.00016702,2]
[393577812,1762812638262,-415.35271108,0.00016702,2]
[393577813,1762812638278,-1243.95506671,0.00016702,2]
[393577814,1762812638287,-1258.89,0.00016746,2]
[393577815,1762812638297,-151.29209286,0.00016764,2]
[393577816,1762812638308,-363.42790714,0.00016764,2]
[393577817,1762812638318,-1000.0,0.00016791,2]
[393577818,1762812638327,-166.66,0.00016805,2]
[393577819,1762812638337,-2000.0,0.00017,2]
[393577820,1762812638351,-546.12651751,0.00017021,2]
[393577821,1762812638360,-514.72,0.00017038,2]
[393577822,1762812638370,-151.0,0.00017058,2]
[393577823,1762812638380,-151.0,0.00017058,2]
[393577824,1762812638393,-151.0,0.00017058,2]
[393577825,1762812638407,-151.0,0.00017058,2]
[393577826,1762812638418,-151.0,0.00017058,2]
[393577827,1762812638427,-151.0,0.00017058,2]
[393577828,1762812638436,-151.0,0.00017058,2]
[393577829,1762812638446,-151.0,0.00017058,2]
[393577830,1762812638455,-151.0,0.00017058,2]
[393577832,1762812638465,-151.0,0.00017058,2]
[393577834,1762812638475,-151.0,0.00017058,2]
[393577836,1762812638485,-229.34265843,0.00017138,2]
[393577838,1762812638495,-166.66,0.00017145,2]
[393577840,1762812638504,-500.0,0.00017288,2]
[393577842,1762812638514,-514.72,0.00017312,2]
[393577844,1762812638525,-195.0,0.0001734,2]
[393577846,1762812638535,-250.0,0.00017393,2]
[393577848,1762812638545,-525.4673543,0.0001746,2]
[393577850,1762812638555,-525.4673543,0.0001746,2]
[393577852,1762812638565,-166.66,0.00017484,2]
[393577854,1762812638575,-303.88,0.00017495,2]
[393577856,1762812638584,-150.0,0.00017495,2]
[393577858,1762812638595,-195.0,0.00017503,2]
[393577860,1762812638604,-26.86820832,0.00017539,2]
[393577863,1762812638620,-642.12284043,0.00017539,2]
[393577907,1762812640200,-888.00895125,0.00017539,2]
[393577908,1762812640213,-1557.0,0.00017539,2]
[393577909,1762812640223,-514.75411188,0.00017586,2]
[393577910,1762812640233,-207.1378254,0.00017591,2]
[393577911,1762812640242,-1557.0,0.00017692,2]
[393577912,1762812640251,-1557.0,0.00017715,2]
[393577913,1762812640260,-300.0,0.00017739,2]
[393577914,1762812640270,-195.0,0.00017739,2]
[393577915,1762812640279,-1557.0,0.00017752,2]
[393577916,1762812640288,-3424.15,0.00017779,2]
[393577917,1762812640298,-1000.0,0.00017789,2]
[393577918,1762812640307,-300.0,0.000178,2]
[393577919,1762812640317,-166.66,0.00017824,2]
[393577920,1762812640326,-1000.0,0.00017827,2]
[393577921,1762812640336,-1557.0,0.00017847,2]
[393577922,1762812640350,-150.0,0.00017899,2]
[393577923,1762812640359,-150.0,0.00017899,2]
[393577924,1762812640369,-150.0,0.00017899,2]
[393577925,1762812640380,-299.99915622,0.00017899,2]
[393577926,1762812640393,-150.0,0.00017899,2]
[393577927,1762812640404,-150.0,0.00017899,2]
[393577928,1762812640414,-500.0,0.00017899,2]
[393577929,1762812640423,-1557.0,0.00017911,2]
[393577930,1762812640433,-3109.0,0.00017913,2]
[393577931,1762812640442,-1289.62389556,0.00017918,2]
[393577932,1762812640451,-500.0,0.00017973,2]
[393577933,1762812640463,-500.0,0.00017973,2]
[393577934,1762812640472,-500.59586088,0.00017973,2]
[393577935,1762812640482,-500.0,0.00017973,2]
[393577936,1762812640491,-500.0,0.00017973,2]
[393577937,1762812640501,-500.0,0.00017973,2]
[393577938,1762812640511,-505.85898911,0.00017973,2]
[393577939,1762812640520,-500.0,0.00017973,2]
[393577940,1762812640529,-500.0,0.00017973,2]
[393577941,1762812640539,-500.0,0.00017973,2]
[393577942,1762812640549,-10709.02208787,0.00017995,2]
[393577943,1762812640561,-620.15433967,0.00017995,2]
[393577944,1762812640573,-3951.2,0.00017995,2]
[393577945,1762812640584,-3927.8227796,0.00017995,2]
[393577946,1762812640601,-682.81730511,0.00017995,2]
[393577947,1762812640611,-22061.26173833,0.00017995,2]
[393577948,1762812640622,-684.31611847,0.00017995,2]
[393577950,1762812640637,-529.147653,0.00017995,2]
[393577953,1762812640660,-2358.03630377,0.00017995,2]
[393577955,1762812640671,-4180.0,0.00017995,2]
[393578115,1762812645816,-358.24238727,0.00017995,2]
[393578116,1762812645827,-398.55922036,0.00017995,2]
[393578118,1762812646492,-3248.11296103,0.00017995,2]
[393578119,1762812646503,-976.095,0.00017995,2]
[393578120,1762812646518,-341.37433542,0.00017995,2]
[393578121,1762812646559,-18895.29040363,0.00017995,2]
[393578124,1762813180140,-261.97,0.00027397,80]
[393578125,1762813180188,-1104.71,0.00027671,30]
[393578126,1762813180235,-200.0,0.0003,30]
[393578127,1762813180280,-261.97,0.00030822,80]
[393578128,1762813180324,-771.62,0.000314,30]
[393578129,1762813180366,-151.0,0.0003143,31]
[393578130,1762813180409,-151.0,0.0003143,31]
[393578131,1762813180453,-151.0,0.0003143,31]
[393578132,1762813180497,-161.434446,0.0003143,30]
[393578133,1762813180537,-151.0,0.0003143,31]
[393578134,1762813180583,-200.0,0.00032,120]
[393578135,1762813180625,-211.0,0.0003286,30]
[393578136,1762813180668,-1316.32,0.000336,60]
[393578137,1762813180710,-152.39998662,0.00033939,60]
[393578138,1762813180752,-275.0,0.00034233,30]
[393578139,1762813180800,-261.97,0.00034247,120]
[393578140,1762813180848,-2104.280186,0.00034319,120]
[393578141,1762813180897,-275.0,0.00034521,30]
[393578142,1762813180943,-1104.71,0.00034867,30]
[393578143,1762813180988,-211.0,0.0003488,30]
[393578144,1762813181036,-771.62,0.000349,30]
[393578145,1762813181085,-5275.0,0.00035,30]
[393578146,1762813181134,-500.0,0.00035113,30]
[393578147,1762813181181,-210.92218601,0.00035139,30]
[393578148,1762813181229,-500.0,0.00035342,30]
[393578149,1762813181277,-500.0,0.00035403,30]
[393578150,1762813181324,-500.0,0.00035455,30]
[393578151,1762813181372,-500.0,0.00035469,30]
[393578152,1762813181418,-500.0,0.00035523,30]
[393578153,1762813181465,-500.0,0.00035527,30]
[393578154,1762813181520,-500.0,0.00035565,30]
[393578155,1762813181569,-500.0,0.00035587,30]
[393578156,1762813181615,-500.0,0.00035622,30]
[393578157,1762813181911,-500.0,0.00035728,30]
[393578158,1762813181956,-500.0,0.00035776,30]